bitfinex/quotes_BTCUSD_20240627
["timestamp","ask_amount","ask_price","bid_price","bid_amount"]
[1719518356637,0.101,61576.0,61575.0,0.009229]
[1719518358095,0.002,61576.0,61575.0,0.36436798]
[1719518358301,0.002,61576.0,61575.0,0.44567144]
[1719518358682,0.001,61576.0,61575.0,0.44567144]
[1719518359001,0.1,61583.0,61575.0,0.44567144]
[1719518359157,0.002,61576.0,61575.0,0.28333246]
[1719518359357,0.003,61576.0,61575.0,0.29433246]
[1719518359564,0.001,61576.0,61575.0,0.29433246]
[1719518360415,0.001,61576.0,61575.0,0.020229]
[1719518360620,0.2371,61576.0,61575.0,0.020229]
[1719518360823,0.36281,61576.0,61575.0,0.020229]
[1719518361454,0.38281,61576.0,61575.0,0.020229]
[1719518361816,0.38381,61576.0,61575.0,0.029229]
[1719518362019,4.124672,61576.0,61575.0,0.029229]
[1719518362226,0.02,61572.0,61571.0,0.009229]
[1719518362420,0.18233371,61572.0,61571.0,0.009229]
[1719518362751,2.210908,61572.0,61571.0,0.009229]
[1719518362960,0.12,61572.0,61571.0,0.009229]
[1719518363395,1.904832,61572.0,61571.0,0.009229]
[1719518363613,0.1,61572.0,61571.0,0.009229]
[1719518363814,0.3361,61572.0,61571.0,0.009229]
[1719518364023,0.526564,61572.0,61571.0,0.009229]
[1719518364237,0.1,61572.0,61571.0,0.17156798]
[1719518364441,0.2361,61576.0,61571.0,0.67156798]
[1719518364649,0.2361,61576.0,61572.0,0.16233898]
[1719518364858,0.1,61575.0,61572.0,0.16233898]
[1719518365508,0.1,61575.0,61571.0,0.009229]
[1719518365710,0.15674,61574.0,61571.0,0.009229]
[1719518365938,0.1,61573.0,61571.0,0.009229]
[1719518366146,0.1,61573.0,61572.0,0.001]
[1719518366367,0.850956,61573.0,61572.0,0.001]
[1719518366598,0.850956,61573.0,61571.0,0.009229]
[1719518366891,0.1121666,61572.0,61571.0,0.009229]
[1719518367029,1.0509916,61572.0,61571.0,0.009229]
[1719518368458,0.02,61566.0,61564.0,0.009229]
[1719518368658,0.02,61566.0,61553.0,0.474]
[1719518368659,0.2361,61566.0,61553.0,0.96182074]
[1719518368902,0.2361,61557.0,61551.0,0.08130346]
[1719518369063,0.3361,61557.0,61556.0,0.104829]
[1719518369805,0.1,61557.0,61556.0,0.26716798]
[1719518370165,0.1,61561.0,61558.0,0.5]
[1719518370367,0.2361,61559.0,61558.0,0.5]
[1719518370576,0.3361,61559.0,61558.0,0.5]
[1719518371943,0.36971,61559.0,61556.0,0.016229]
[1719518372077,0.1,61558.0,61556.0,0.009229]
[1719518372278,0.02,61557.0,61556.0,0.009229]
[1719518372724,1.332384,61557.0,61556.0,0.009229]
[1719518372932,1.367384,61557.0,61556.0,0.009229]
[1719518373137,0.29383,61557.0,61556.0,0.013229]
[1719518373345,0.1,61557.0,61556.0,0.013229]
[1719518373757,0.1,61557.0,61556.0,0.009229]
[1719518373997,0.1,61557.0,61556.0,0.015229]
[1719518373998,0.05461,61557.0,61556.0,0.015229]
[1719518374203,0.02,61553.0,61550.0,0.009229]
[1719518374405,0.2361,61551.0,61550.0,0.009229]
[1719518374670,0.3561,61551.0,61550.0,0.009229]
[1719518374875,2.51042571,61551.0,61550.0,0.009229]
[1719518375082,0.3361,61551.0,61550.0,0.009229]
[1719518375229,2.340137,61551.0,61550.0,0.009229]
[1719518375437,2.216595,61551.0,61550.0,0.009229]
[1719518375616,2.5129,61551.0,61550.0,0.009229]
[1719518376022,2.4929,61551.0,61550.0,0.009229]
[1719518376220,0.727689,61551.0,61550.0,0.009229]
[1719518376623,0.739689,61551.0,61550.0,0.009229]
[1719518377137,0.739689,61551.0,61550.0,0.010229]
[1719518377138,0.3471,61551.0,61550.0,0.010229]
[1719518377584,0.3541,61551.0,61550.0,0.010229]
[1719518377898,0.3431,61551.0,61550.0,0.009229]
[1719518378096,0.3491,61551.0,61550.0,0.010229]
[1719518378681,0.3491,61551.0,61546.0,0.00924]
[1719518378682,0.02,61547.0,61546.0,0.00924]
[1719518378883,0.2361,61547.0,61539.0,0.00924]
[1719518379129,4.36929499,61551.0,61539.0,0.00924]
[1719518379130,0.2361,61541.0,61539.0,0.00924]
[1719518380030,2.375565,61549.0,61539.0,0.00924]
[1719518380264,0.2361,61541.0,61539.0,0.00924]
[1719518380729,0.25971,61541.0,61539.0,0.00924]
[1719518380937,0.75914898,61541.0,61519.0,0.0757]
[1719518381134,0.75914898,61541.0,61521.0,0.26364244]
[1719518381135,0.2361,61522.0,61521.0,0.26364244]
[1719518381315,0.3361,61522.0,61521.0,0.26364244]
[1719518381536,0.5256,61522.0,61521.0,0.26364244]
[1719518381738,0.3361,61522.0,61521.0,0.26364244]
[1719518382454,0.1,61522.0,61521.0,0.26364244]
[1719518382985,0.101,61522.0,61521.0,0.26464244]
[1719518383594,0.101,61522.0,61521.0,0.08230346]
[1719518383595,0.001,61522.0,61521.0,0.08230346]
[1719518383813,0.115003,61522.0,61521.0,0.08230346]
[1719518384015,0.002,61522.0,61521.0,0.001]
[1719518384280,0.001,61522.0,61521.0,0.16233898]
[1719518384477,0.2,61537.0,61521.0,0.16233898]
[1719518384478,0.2361,61530.0,61524.0,0.02]
[1719518384628,0.2361,61530.0,61521.0,0.16233898]
[1719518384629,0.1,61529.0,61528.0,0.17950346]
[1719518384833,0.2,61561.0,61542.0,0.1776]
[1719518385061,0.48782074,61543.0,61542.0,0.1776]
[1719518385212,0.2361,61547.0,61542.0,0.1776]
[1719518385438,0.2361,61547.0,61532.0,0.474]
[1719518385640,0.4,61554.0,61532.0,0.474]
[1719518385641,0.2361,61536.0,61532.0,0.474]
[1719518385824,0.2361,61536.0,61533.0,0.02]
[1719518386024,0.2361,61536.0,61532.0,0.474]
[1719518386221,0.2361,61536.0,61533.0,0.02]
[1719518386428,0.2361,61536.0,61532.0,0.494]
[1719518386624,0.12361,61535.0,61532.0,0.474]
[1719518386829,0.12361,61535.0,61532.0,0.494]
[1719518387027,0.1,61535.0,61532.0,0.494]
[1719518387494,0.1,61535.0,61534.0,0.02]
[1719518387885,0.105,61535.0,61534.0,0.02]
[1719518388078,0.105,61535.0,61534.0,0.18233898]
[1719518388409,0.1,61535.0,61534.0,0.1716]
[1719518388624,0.1,61535.0,61528.0,0.077]
[1719518388625,0.36971,61535.0,61528.0,0.077]
[1719518388815,0.2361,61529.0,61524.0,0.02]
[1719518389066,0.1,61528.0,61524.0,0.02]
[1719518389905,0.1,61528.0,61527.0,0.02]
[1719518390079,0.1,61528.0,61523.0,0.077]
[1719518390080,0.1,61528.0,61526.0,0.08130346]
[1719518390299,0.1,61528.0,61527.0,0.02]
[1719518390588,0.1,61528.0,61526.0,0.08130346]
[1719518390791,2.292222,61527.0,61513.0,0.58024]
[1719518390993,0.2361,61515.0,61513.0,0.10624]
[1719518391424,0.1,61514.0,61513.0,0.08624]
[1719518391614,0.1,61514.0,61513.0,0.00924]
[1719518392256,0.1,61514.0,61513.0,0.19157898]
[1719518392568,0.2361,61522.0,61520.0,0.02]
[1719518392723,0.2361,61522.0,61521.0,0.10130346]
[1719518392929,0.3361,61522.0,61521.0,0.08130346]
[1719518393257,0.1,61522.0,61521.0,0.26364244]
[1719518393432,0.1,61522.0,61521.0,0.44014244]
[1719518393832,0.1,61522.0,61521.0,0.57536593]
[1719518394166,0.1,61527.0,61526.0,0.02]
[1719518394381,0.1,61527.0,61526.0,0.18233898]
[1719518394570,0.1,61527.0,61526.0,0.81755552]
[1719518394983,0.2957,61541.0,61535.0,0.01]
[1719518394984,0.1,61540.0,61535.0,0.01]
[1719518395185,0.1,61540.0,61526.0,0.79755552]
[1719518395186,0.1,61540.0,61536.0,0.003209]
[1719518395325,0.1,61540.0,61528.0,0.08130346]
[1719518395508,0.03973249,61539.0,61529.0,0.16233898]
[1719518395713,0.816136,61540.0,61536.0,0.1765]
[1719518395714,0.1,61540.0,61536.0,0.1765]
[1719518395915,0.00162491,61542.0,61536.0,0.1765]
[1719518396359,0.00162491,61542.0,61537.0,0.24364244]
[1719518396968,0.00162491,61542.0,61538.0,0.138443]
[1719518397143,0.00162491,61542.0,61539.0,0.29753218]
[1719518397342,0.2957,61551.0,61540.0,0.00324965]
[1719518397616,0.2957,61558.0,61546.0,0.1765]
[1719518397822,0.2,61573.0,61546.0,0.1765]
[1719518397823,0.2957,61565.0,61552.0,0.08130346]
[1719518398002,0.2957,61565.0,61553.0,0.16233898]
[1719518398240,0.2957,61565.0,61554.0,0.1765]
[1719518398450,0.2957,61565.0,61554.0,0.33883898]
[1719518398610,0.02957,61564.0,61554.0,0.33883898]
[1719518398839,0.014,61558.0,61554.0,0.33883898]
[1719518399263,1.47856,61564.0,61554.0,0.33883898]
[1719518399264,0.732153,61564.0,61554.0,0.33883898]
[1719518399482,0.1,61563.0,61554.0,0.33883898]
[1719518399649,0.2957,61565.0,61555.0,0.08130346]
[1719518399650,0.1,61564.0,61555.0,0.08130346]
[1719518399846,0.735107,61564.0,61556.0,0.16233898]
[1719518400043,0.1,61564.0,61556.0,0.16233898]
[1719518400248,0.03957,61563.0,61556.0,0.16233898]
[1719518400447,0.561825,61563.0,61562.0,0.08130346]
[1719518400815,0.1,61564.0,61562.0,0.16233898]
[1719518401055,0.004,61565.0,61563.0,0.16233898]
[1719518401264,0.1,61575.0,61563.0,0.16233898]
[1719518401469,0.006,61564.0,61563.0,0.16233898]
[1719518401858,0.2957,61583.0,61563.0,0.16233898]
[1719518401859,0.2957,61583.0,61564.0,0.1718]
[1719518402094,0.48782074,61582.0,61568.0,0.08130346]
[1719518402294,0.02957,61582.0,61569.0,0.16233898]
[1719518402500,1.44029,61582.0,61569.0,0.16233898]
[1719518402707,0.4698,61582.0,61569.0,0.16233898]
[1719518402905,0.2957,61580.0,61569.0,0.16233898]
[1719518403258,0.2957,61580.0,61571.0,0.08130346]
[1719518403459,0.2957,61580.0,61572.0,0.16233898]
[1719518404025,0.1,61579.0,61572.0,0.16233898]
[1719518404317,0.0141,61582.0,61573.0,0.0776]
[1719518404520,0.0001,61582.0,61574.0,0.16233898]
[1719518404723,0.003,61580.0,61574.0,0.16233898]
[1719518404950,0.015,61580.0,61574.0,0.16233898]
[1719518405134,0.012,61580.0,61574.0,0.16233898]
[1719518405337,0.012,61580.0,61571.0,0.08130346]
[1719518405338,0.0001,61582.0,61581.0,0.22]
[1719518405510,0.02084,61612.0,61589.0,0.1908]
[1719518405511,0.00084,61612.0,61589.0,0.1908]
[1719518405690,0.00084,61612.0,61590.0,0.16233898]
[1719518405691,0.48782074,61594.0,61590.0,0.16233898]
[1719518405903,0.2957,61606.0,61590.0,0.16233898]
[1719518406572,1.443729,61605.0,61590.0,0.16233898]
[1719518407342,0.1,61604.0,61590.0,0.16233898]
[1719518407537,0.2957,61599.0,61590.0,0.16233898]
[1719518407746,0.2957,61599.0,61592.0,0.08130346]
[1719518407954,0.011,61605.0,61594.0,0.5]
[1719518408116,0.011,61605.0,61595.0,0.16558567]
[1719518408117,0.022,61605.0,61595.0,0.16558567]
[1719518408330,0.022,61605.0,61603.0,0.1794]
[1719518408331,0.011,61605.0,61603.0,0.1794]
[1719518408530,0.011,61605.0,61604.0,0.16233898]
[1719518409320,0.011,61605.0,61598.0,0.1786]
[1719518409526,0.011,61605.0,61599.0,0.16233898]
[1719518409693,0.00084,61612.0,61599.0,0.16233898]
[1719518409840,0.042495,61611.0,61599.0,0.16233898]
[1719518410035,0.08214346,61612.0,61593.0,0.474]
[1719518410238,0.2957,61601.0,61593.0,0.63633898]
[1719518410442,0.2957,61601.0,61593.0,0.474]
[1719518410657,0.2957,61601.0,61599.0,0.001]
[1719518410658,1.017078,61600.0,61599.0,0.001]
[1719518410995,0.914442,61600.0,61599.0,0.001]
[1719518411195,0.914442,61600.0,61593.0,0.474]
[1719518411398,0.1,61599.0,61593.0,0.474]
[1719518411866,0.2957,61603.0,61595.0,0.08130346]
[1719518411867,0.014,61600.0,61595.0,0.08130346]
[1719518412069,0.1,61602.0,61596.0,0.16233898]
[1719518412486,0.014,61600.0,61596.0,0.16233898]
[1719518413943,0.006,61602.0,61596.0,0.16333898]
[1719518414376,0.007,61600.0,61596.0,0.16333898]
[1719518414569,0.1,61607.0,61596.0,0.16233898]
[1719518414773,0.02,61606.0,61596.0,0.16233898]
[1719518414973,0.746473,61599.0,61593.0,0.474]
[1719518415153,0.1,61598.0,61594.0,0.16233898]
[1719518415517,0.647889,61598.0,61594.0,0.16233898]
[1719518415723,0.1,61598.0,61594.0,0.16233898]
[1719518415930,0.35813,61597.0,61594.0,0.16233898]
[1719518416126,0.1,61596.0,61590.0,0.0762]
[1719518416333,0.1,61596.0,61591.0,0.16233898]
[1719518416538,0.9210051,61596.0,61585.0,0.0798]
[1719518416747,0.9210051,61596.0,61584.0,0.474]
[1719518416748,0.2957,61595.0,61584.0,0.474]
[1719518416959,0.1,61594.0,61584.0,0.63633898]
[1719518417197,0.16233371,61593.0,61584.0,0.63633898]
[1719518417408,0.16233371,61593.0,61572.0,0.5538]
[1719518417409,0.2957,61588.0,61572.0,0.5538]
[1719518417619,0.2957,61588.0,61573.0,0.16233898]
[1719518417620,0.3057,61588.0,61573.0,0.16233898]
[1719518417853,0.1,61592.0,61573.0,0.16233898]
[1719518417854,0.02,61586.0,61573.0,0.16233898]
[1719518418075,0.2957,61581.0,61573.0,0.16233898]
[1719518418275,0.1,61580.0,61578.0,0.58130346]
[1719518418612,0.1,61580.0,61572.0,0.0798]
[1719518418856,0.01,61579.0,61573.0,0.16233898]
[1719518419055,0.01,61579.0,61566.0,0.03242398]
[1719518419056,0.2957,61573.0,61566.0,0.03242398]
[1719518419267,0.367766,61579.0,61568.0,0.16233898]
[1719518419532,0.1,61578.0,61571.0,0.08130346]
[1719518419727,0.1,61578.0,61572.0,0.6762]
[1719518420078,0.1,61578.0,61573.0,0.0032478]
[1719518420295,0.1,61578.0,61572.0,0.6762]
[1719518420508,0.0105,61578.0,61573.0,0.16233898]
[1719518420711,0.004,61581.0,61573.0,0.24364244]
[1719518421059,0.002,61578.0,61573.0,0.24364244]
[1719518421477,0.002,61578.0,61573.0,0.16233898]
[1719518421624,0.249,61577.0,61573.0,0.16233898]
[1719518421826,0.1,61576.0,61573.0,0.16233898]
[1719518422393,0.0102,61575.0,61565.0,0.1762]
[1719518422613,0.0102,61575.0,61566.0,0.16233898]
[1719518422816,0.1,61576.0,61566.0,0.16233898]
[1719518423020,0.101,61577.0,61572.0,0.08130346]
[1719518423222,0.2957,61578.0,61566.0,0.16233898]
[1719518423223,0.06838143,61578.0,61566.0,0.16233898]
[1719518423577,0.06838143,61578.0,61572.0,0.08130346]
[1719518423979,0.2957,61585.0,61572.0,0.08130346]
[1719518424186,0.2957,61585.0,61579.0,0.08130346]
[1719518424373,0.02,61590.0,61579.0,0.08130346]
[1719518424574,0.01,61577.0,61573.0,0.16233898]
[1719518425431,0.1,61588.0,61573.0,0.16233898]
[1719518425844,0.028,61585.0,61579.0,0.001]
[1719518426375,0.501223,61588.0,61573.0,0.16233898]
[1719518426376,0.1,61588.0,61573.0,0.16233898]
[1719518426581,0.004,61577.0,61573.0,0.16233898]
[1719518426750,0.004,61577.0,61573.0,0.16333898]
[1719518427125,0.004,61577.0,61567.0,0.474]
[1719518427291,0.004,61577.0,61570.0,0.08130346]
[1719518427651,0.004,61577.0,61573.0,0.001]
[1719518428437,0.1,61581.0,61574.0,0.16233898]
[1719518428632,0.1,61581.0,61578.0,0.08130346]
[1719518428817,0.005,61585.0,61580.0,0.1763]
[1719518429025,0.1,61595.0,61581.0,0.16233898]
[1719518429245,0.58782074,61595.0,61581.0,0.16233898]
[1719518429611,0.1,61595.0,61592.0,0.08130346]
[1719518429855,0.1,61595.0,61585.0,0.08130346]
[1719518430067,0.2957,61603.0,61592.0,0.08130346]
[1719518430261,0.093489,61613.0,61593.0,0.16558573]
[1719518430262,0.1,61602.0,61593.0,0.16558573]
[1719518430466,0.2957,61610.0,61593.0,0.16558573]
[1719518430666,0.2957,61610.0,61593.0,0.16233898]
[1719518430841,0.009,61595.0,61593.0,0.16233898]
[1719518431281,0.009,61595.0,61592.0,0.001]
[1719518431863,0.009,61595.0,61593.0,0.29741359]
[1719518431864,0.018,61595.0,61593.0,0.29741359]
[1719518432185,0.1,61601.0,61593.0,0.16233898]
[1719518432378,0.1,61601.0,61595.0,0.08130346]
[1719518432512,0.3097,61610.0,61596.0,0.16233898]
[1719518432513,0.1,61609.0,61596.0,0.16233898]
[1719518432956,1.033021,61609.0,61596.0,0.16233898]
[1719518433371,0.02,61606.0,61593.0,0.001]
[1719518433545,0.1,61607.0,61593.0,0.001]
[1719518433747,0.1,61607.0,61588.0,0.58130346]
[1719518433949,1.253948,61605.0,61589.0,0.29741093]
[1719518434190,0.1,61604.0,61596.0,0.001]
[1719518434328,1.139763,61604.0,61596.0,0.001]
[1719518434531,1.065763,61604.0,61596.0,0.001]
[1719518434765,0.1,61604.0,61596.0,0.001]
[1719518434970,0.727362,61603.0,61596.0,0.001]
[1719518435164,0.1,61602.0,61596.0,0.001]
[1719518435366,0.1,61602.0,61589.0,0.16233898]
[1719518435571,0.1,61602.0,61590.0,0.13507215]
[1719518435769,0.1,61602.0,61591.0,0.29741113]
[1719518435978,0.1,61602.0,61592.0,0.13507215]
[1719518436182,0.1,61602.0,61592.0,0.16233898]
[1719518436382,0.014,61602.0,61592.0,0.16233898]
[1719518436584,0.12,61609.0,61592.0,0.16233898]
[1719518436804,0.014,61602.0,61593.0,0.13507215]
[1719518437004,0.028,61602.0,61592.0,0.16233898]
[1719518437409,0.1,61607.0,61592.0,0.16233898]
[1719518437768,0.1,61607.0,61593.0,0.13507215]
[1719518437991,1.475056,61606.0,61592.0,0.16233898]
[1719518438191,1.475056,61606.0,61593.0,0.13507215]
[1719518438192,0.1,61605.0,61593.0,0.13507215]
[1719518438482,0.1,61605.0,61592.0,0.16233898]
[1719518438483,0.26233371,61605.0,61592.0,0.16233898]
[1719518438712,0.028,61602.0,61593.0,0.13507215]
[1719518438911,0.128,61602.0,61592.0,0.16333898]
[1719518439306,0.128,61602.0,61592.0,0.16233898]
[1719518439307,0.114,61602.0,61592.0,0.16233898]
[1719518439512,0.1,61602.0,61592.0,0.16233898]
[1719518440032,0.1,61602.0,61595.0,0.08130346]
[1719518440361,0.1,61602.0,61596.0,0.16233898]
[1719518440563,0.014,61605.0,61596.0,0.16233898]
[1719518440699,0.1,61609.0,61597.0,0.13506052]
[1719518440898,0.1,61609.0,61588.0,0.62084514]
[1719518440899,0.162495,61609.0,61598.0,0.16233898]
[1719518441143,2.35992,61608.0,61588.0,0.58130346]
[1719518441457,2.35992,61608.0,61589.0,0.29741089]
[1719518441458,0.2957,61603.0,61589.0,0.29741089]
[1719518441661,0.1,61602.0,61590.0,0.13507191]
[1719518441862,0.1,61602.0,61591.0,0.29741089]
[1719518442014,1.158682,61602.0,61592.0,0.13607191]
[1719518442201,1.158682,61602.0,61593.0,0.16233898]
[1719518442403,1.144682,61602.0,61593.0,0.16233898]
[1719518442602,0.114,61602.0,61593.0,0.16233898]
[1719518443465,0.1,61602.0,61593.0,0.16233898]
[1719518443854,0.128,61602.0,61593.0,0.16333898]
[1719518445324,0.02,61597.0,61593.0,0.001]
[1719518445500,0.04437,61601.0,61593.0,0.001]
[1719518445501,0.2957,61596.0,61593.0,0.001]
[1719518445699,0.1,61595.0,61593.0,0.001]
[1719518446017,0.254222,61595.0,61593.0,0.001]
[1719518446157,0.1,61595.0,61594.0,0.32004244]
[1719518446554,0.1,61595.0,61594.0,0.82004244]
[1719518446763,0.011,61597.0,61594.0,0.82004244]
[1719518446957,0.009,61595.0,61594.0,0.82004244]
[1719518447176,0.1,61605.0,61594.0,0.82004244]
[1719518447575,0.009,61595.0,61594.0,0.82004244]
[1719518448892,0.018,61595.0,61594.0,0.82104244]
[1719518449492,0.018,61595.0,61594.0,0.84104244]
[1719518449676,0.009,61595.0,61594.0,0.93804244]
[1719518449890,0.1,61610.0,61595.0,0.02]
[1719518450102,0.1,61610.0,61596.0,0.16233898]
[1719518450301,0.12823745,61610.0,61596.0,0.16233898]
[1719518450843,0.236,61606.0,61596.0,0.16233898]
[1719518451045,0.1,61605.0,61596.0,0.16233898]
[1719518453581,0.1,61605.0,61589.0,0.474]
[1719518453582,0.236,61597.0,61589.0,0.474]
[1719518453783,0.236,61597.0,61581.0,0.5]
[1719518453784,0.236,61590.0,61581.0,0.474]
[1719518454009,0.1,61589.0,61582.0,0.16233898]
[1719518455532,0.1,61589.0,61587.0,0.08130346]
[1719518455786,0.1,61594.0,61587.0,0.08130346]
[1719518455933,0.1,61594.0,61582.0,0.16233898]
[1719518456134,0.1,61594.0,61587.0,0.08130346]
[1719518456343,0.1,61594.0,61587.0,0.24364244]
[1719518456502,0.004,61589.0,61587.0,0.24364244]
[1719518456703,0.004,61589.0,61587.0,0.16233898]
[1719518456904,0.1,61594.0,61587.0,0.16233898]
[1719518457144,0.14812304,61594.0,61587.0,0.16233898]
[1719518457383,0.005,61589.0,61587.0,0.16233898]
[1719518457746,0.29335344,61594.0,61587.0,0.16233898]
[1719518458151,0.236,61590.0,61587.0,0.16233898]
[1719518458349,0.236,61590.0,61580.0,0.08130346]
[1719518458350,0.1,61589.0,61575.0,0.5]
[1719518458551,0.236,61584.0,61575.0,0.5]
[1719518458761,0.1,61583.0,61575.0,0.5]
[1719518458958,0.1,61583.0,61579.0,0.24364244]
[1719518459514,0.1,61583.0,61579.0,0.16233898]
[1719518459884,0.1,61586.0,61579.0,0.16233898]
[1719518460642,0.1,61586.0,61579.0,0.16533898]
[1719518460844,0.0356,61586.0,61579.0,0.16533898]
[1719518461220,0.0356,61586.0,61579.0,0.003]
[1719518461221,0.236,61584.0,61579.0,0.003]
[1719518461442,0.1,61583.0,61579.0,0.003]
[1719518461897,0.1,61583.0,61575.0,0.5]
[1719518462138,0.28245855,61583.0,61576.0,0.16233898]
[1719518462339,0.13726,61583.0,61578.0,0.000924]
[1719518463158,0.13926,61583.0,61578.0,0.000924]
[1719518463349,0.102,61583.0,61578.0,0.000924]
[1719518463547,0.1,61583.0,61578.0,0.000924]
[1719518463680,0.103,61583.0,61578.0,0.000924]
[1719518464046,0.102,61583.0,61578.0,0.000924]
[1719518464396,0.105,61583.0,61578.0,0.000924]
[1719518464794,0.0486124,61582.0,61578.0,0.000924]
[1719518465043,0.236,61579.0,61578.0,0.000924]
[1719518465237,0.336,61579.0,61578.0,0.000924]
[1719518466210,0.926602,61579.0,61578.0,0.000924]
[1719518466430,0.336,61579.0,61578.0,0.000924]
[1719518466709,0.555902,61579.0,61578.0,0.000924]
[1719518466849,0.6114922,61579.0,61578.0,0.003924]
[1719518467859,0.555902,61579.0,61578.0,0.003924]
[1719518468636,0.555902,61579.0,61578.0,0.000924]
[1719518468768,0.555902,61579.0,61578.0,0.001924]
[1719518468970,0.575902,61579.0,61578.0,0.001924]
[1719518469408,0.575902,61579.0,61562.0,0.474]
[1719518469409,0.01,61571.0,61562.0,0.474]
[1719518469595,0.236,61563.0,61559.0,0.0943]
[1719518469940,0.236,61563.0,61555.0,0.0757]
[1719518469941,0.1,61562.0,61555.0,0.0757]
[1719518470329,0.1,61562.0,61555.0,0.07609645]
[1719518470863,0.1,61562.0,61557.0,0.00039645]
[1719518471543,0.105,61562.0,61557.0,0.00039645]
[1719518471773,0.1,61562.0,61555.0,0.07609645]
[1719518472094,0.105,61562.0,61557.0,0.00039645]
[1719518472284,0.105,61562.0,61555.0,0.0757]
[1719518472285,0.105,61562.0,61555.0,0.07609645]
[1719518472516,0.0341,61561.0,61555.0,0.07609645]
[1719518473340,0.0341,61561.0,61555.0,0.0757]
[1719518474015,0.1121,61562.0,61557.0,0.00039645]
[1719518474190,0.1121,61562.0,61555.0,0.07609645]
[1719518474396,0.1171,61562.0,61555.0,0.07609645]
[1719518474623,0.1121,61562.0,61559.0,0.00039645]
[1719518474826,0.1121,61562.0,61560.0,0.16233898]
[1719518474827,0.0081,61562.0,61560.0,0.16233898]
[1719518475027,0.008,61561.0,61560.0,0.16233898]
[1719518475234,0.003,61561.0,61560.0,0.16273543]
[1719518475569,0.0081,61562.0,61560.0,0.16273543]
[1719518475729,0.0081,61562.0,61561.0,0.00039645]
[1719518476048,0.0121,61562.0,61561.0,0.00039645]
[1719518476461,0.1,61563.0,61562.0,0.00039645]
[1719518476705,0.236,61569.0,61566.0,0.00039645]
[1719518476912,0.236,61569.0,61566.0,0.18739645]
[1719518478273,0.245,61569.0,61567.0,0.00039645]
[1719518478486,0.1,61568.0,61566.0,0.18739645]
[1719518478685,0.1,61568.0,61566.0,0.187]
[1719518478889,0.1,61568.0,61562.0,0.16233898]
[1719518479256,0.1345,61568.0,61566.0,0.001]
[1719518479424,0.236,61567.0,61566.0,0.001]
[1719518479663,1.214135,61567.0,61562.0,0.16233898]
[1719518479845,0.1,61566.0,61562.0,0.16233898]
[1719518480041,0.1,61566.0,61562.0,0.16333898]
[1719518480289,0.1555687,61566.0,61562.0,0.001]
[1719518480452,0.1,61566.0,61562.0,0.001]
[1719518481294,0.1,61566.0,61556.0,0.1688]
[1719518481514,0.236,61562.0,61560.0,0.00039645]
[1719518481656,0.236,61564.0,61559.0,0.00039645]
[1719518481859,0.06221747,61566.0,61559.0,0.00039645]
[1719518482078,0.236,61569.0,61559.0,0.00039645]
[1719518482379,0.2606,61569.0,61559.0,0.00039645]
[1719518482601,0.004,61566.0,61557.0,0.16273543]
[1719518482775,0.004,61566.0,61559.0,0.00039645]
[1719518482985,0.730278,61568.0,61559.0,0.00039645]
[1719518483168,0.236,61569.0,61559.0,0.00039645]
[1719518483169,0.005,61566.0,61559.0,0.00039645]
[1719518483568,0.236,61569.0,61559.0,0.00039645]
[1719518483771,0.1,61568.0,61559.0,0.00039645]
[1719518483977,0.007,61566.0,61559.0,0.00039645]
[1719518484382,0.1,61568.0,61559.0,0.00039645]
[1719518484813,0.007,61566.0,61559.0,0.00139645]
[1719518484988,0.107,61566.0,61559.0,0.00139645]
[1719518485199,0.107,61566.0,61559.0,0.00039645]
[1719518485617,0.107,61566.0,61559.0,0.00139645]
[1719518486014,0.007,61566.0,61559.0,0.00139645]
[1719518486218,0.1,61568.0,61559.0,0.00039645]
[1719518486440,0.005,61566.0,61559.0,0.00039645]
[1719518486641,0.005,61566.0,61557.0,0.16233898]
[1719518486840,0.236,61564.0,61556.0,0.1688]
[1719518487064,0.2220168,61566.0,61550.0,0.1704]
[1719518487065,0.236,61559.0,61550.0,0.1704]
[1719518487279,0.236,61554.0,61549.0,0.00039645]
[1719518487479,0.1,61553.0,61549.0,0.00039645]
[1719518487783,0.0336,61552.0,61549.0,0.00039645]
[1719518487988,0.1,61553.0,61546.0,0.0939]
[1719518488187,0.903013,61552.0,61546.0,0.25623898]
[1719518488415,0.1,61551.0,61546.0,0.25623898]
[1719518489405,0.236,61547.0,61539.0,0.1707]
[1719518489592,0.236,61547.0,61546.0,0.001]
[1719518489949,0.236,61547.0,61540.0,0.16233898]
[1719518489950,0.336,61547.0,61540.0,0.16233898]
[1719518490241,0.336,61547.0,61543.0,0.00039645]
[1719518490242,0.1,61546.0,61543.0,0.00039645]
[1719518490442,0.1,61546.0,61540.0,0.16233898]
[1719518490556,0.1,61546.0,61541.0,0.00039645]
[1719518490755,0.1,61546.0,61541.0,0.16273543]
[1719518491187,0.001,61547.0,61545.0,0.00039645]
[1719518491362,0.001,61547.0,61546.0,0.00039645]
[1719518492021,0.002,61547.0,61544.0,0.08130346]
[1719518492426,0.001,61547.0,61544.0,0.08130346]
[1719518492679,0.1,61551.0,61545.0,0.00039645]
[1719518492844,0.001,61547.0,61545.0,0.00039645]
[1719518493044,0.005,61546.0,61545.0,0.00039645]
[1719518493279,0.1,61551.0,61545.0,0.00039645]